{"text_format":"1","workbook":"xlsx","n_sheets":3,"sheets":["Feuil1","Feuil2","BL"],"not_rendered":{"charts":0,"images":10,"macros":1,"external_links":0,"defined_names":15,"comments":3,"pivot_tables":0},"unopened":[],"bounds":{"document_bytes":16777216,"sheet_cells":100000,"rows_first":2000,"rows_last":500,"rows_between":2000,"halvings":0,"cell_chars":16384,"cell_head_chars":4096},"cells_cut":0,"cells_raw":0,"read":"whole","date_system":"1900"}

{"sheet":"Feuil1","index":0,"n_rows":110,"n_cols":13,"rows_kept":110,"cut":false,"hidden":false,"merged":[[3,0,3,2],[4,0,4,2],[5,0,5,2],[3,3,3,6],[4,3,4,6],[5,3,5,6],[53,2,53,4],[101,0,101,1],[102,0,102,1],[103,0,103,1],[97,0,97,1],[98,0,98,1],[99,0,99,1],[100,0,100,1],[58,0,58,1],[0,3,0,5],[2,3,2,6],[1,3,1,4],[0,0,0,2],[1,0,1,2],[2,0,2,2],[6,5,6,6],[48,2,48,4],[50,2,50,3],[52,2,52,3],[8,4,8,6],[46,0,46,1],[47,0,47,1],[52,0,52,1],[54,0,54,1],[51,0,51,1],[53,0,53,1],[105,0,105,1],[57,0,57,1],[55,0,55,1],[60,0,60,6],[56,0,56,1]]}
["Gestion & Développement Bergeron Gagné Inc.                    ",null,null,"SOUMISSION   n°",null,null,1317,null,null,null,null,"Profil:","Kevin"]
["Entrepreneur Général",null,null,"Terrebonne",null,"2016-09-21"]
[]
["2027 Murray Bay, Mascouche, Québec, Canada, J7L 4G8",null,null,"Nom"]
["TÉL: 514.299.8440",null,null,"Adresse"]
[null,null,null,"CP     Ville"]
[{"$f":"COUNTA(B11:B43)","v":0},null,null,"Sem","Fichier:",{"$f":"LOWER(IF(B8=\"\",\"\",CONCATENATE(B8,G8)))","v":""}]
["Maison",null,null,37,"Page:",null,1]
[null,null,null,"Modèle:"]
["Référence","Désignation","Unité","Escompte","Quantité","Prix Unit.($)","Prix($)"]
[null,null,null,null,null,null,{"$f":"IF(COUNTA(E11:F11)<2,\"\",PRODUCT(((100-D11)/100),E11,F11))","v":""}]
[null,null,null,null,null,null,""]
[null,null,null,null,null,null,""]
[null,null,null,null,null,null,""]
[null,null,null,null,null,null,""]
[null,null,null,null,null,null,""]
[null,null,null,null,null,null,""]
[null,null,null,null,null,null,""]
[null,null,null,null,null,null,""]
[null,null,null,null,null,null,""]
[null,null,null,null,null,null,""]
[null,null,null,null,null,null,{"$f":"IF(COUNTA(E22:F22)<2,\"\",PRODUCT(((100-D22)/100),E22,F22))","v":""}]
[null,null,null,null,null,null,""]
[null,null,null,null,null,null,""]
[null,null,null,null,null,null,""]
[null,null,null,null,null,null,""]
[null,null,null,null,null,null,""]
[null,null,null,null,null,null,""]
[null,null,null,null,null,null,""]
[null,null,null,null,null,null,""]
[null,null,null,null,null,null,""]
[null,null,null,null,null,null,""]
[null,null,null,null,null,null,""]
[null,null,null,null,null,null,""]
[null,null,null,null,null,null,""]
[null,null,null,null,null,null,""]
[null,null,null,null,null,null,""]
[null,null,null,null,null,null,""]
[null,null,null,null,null,null,""]
[null,null,null,null,null,null,""]
[null,null,null,null,null,null,""]
[null,null,null,null,null,null,""]
[null,null,null,null,null,null,""]
[null,"Validité de l'offre : 30 jours"]
[null,null,"Total(Page) ",null,null,null,{"$f":"SUM(G11:G43)","v":0}]
["Signé et daté, ce devis devient contractuel."]
[null,null,"Transfer"]
["Signature:___________________________  Date:____/____/________"]
[null,null,"Sous-Total (Page + Transfer)",null,null,null,{"$f":"SUM(G11:G43,G47)","v":0}]
["Veuillez nous retourner un exemplaire signé et daté."]
[null,"                                                                                          LÉGENDE :","T.P.S.",null,0.05,null,{"$f":"PRODUCT(G49,E51)","v":0}]
["* : Voir notes et conditions jointes",null,"T.V.Q.",null,9.9750000000000005E-2,null,{"$f":"PRODUCT(G49,E52)","v":0}]
["Gestion & Développement Bergeron Gagné Inc.                    ",null,"Total  ",null,null,null,{"$f":"(G49+G51+G52)","v":0}]
["Entrepreneur Général"]
["2027 Murray Bay, Mascouche, Québec, Canada, J7L 4G8"]
["TÉL: 514.299.8440"]
["Courriel: jsbg@live.ca"]
["R.B.Q. : 5627-0927-01"]
["T.V.Q.: 121760185 / T.P.S.: 82665 6803"]
[]
["Mode de paiement → payable sur réception, des frais de 2% par mois seront chargés sur tout montant en souffrance."]
[]
[]
[]
[]
[]
[]
[]
[]
[]
[]
[]
[]
[]
[]
[]
[]
[]
[]
[]
[]
[]
[]
[]
[]
[]
[]
[]
[]
[]
[]
[]
[]
[]
[]
[]
[]
["Gestion & Développement Bergeron Gagné Inc.                    "]
["Entrepreneur Général"]
["2027 Murray Bay, Mascouche, Québec, Canada, J7L 4G8"]
["TÉL: 514.299.8440"]
["Courriel: jsbg@live.ca"]
["R.B.Q. : 5627-0927-01"]
["T.V.Q.: 121760185 / T.P.S.: 82665 6803"]
[{"$f":"INT((F2-(DATE(YEAR(F2-WEEKDAY(F2-1)+4),1,3)-WEEKDAY(DATE(YEAR(F2-WEEKDAY(F2-1)+4),1,3)))+5)/7)","v":38},"N° de semaine"]
[{"$f":"TODAY()","v":"2016-09-22"}]
[0.14974999999999999,"TVA"]
[1.4975E-2,"TVA réduite"]
[]
["$"," Dollar US","Devise"]

{"sheet":"Feuil2","index":1,"n_rows":371,"n_cols":28,"rows_kept":371,"cut":false,"hidden":false,"merged":[]}
[null,"Jean-Sébastien",null,null,null,null,null,null,null,"ÉLECTRICITÉ",null,null,null,null,"tt",null,null,null,null,"Bibli_3",null,null,null,null,"Bibli_4"]
["Référence"," (Maisons usinées Côté)","Unité","Prix Unit. ($)",{"$f":"COUNTA(B7:B30245)","v":354},null,null,null,"Reference","Désignation","Unité","Prix Unit. ($)",{"$f":" COUNTA(J8:J30257)","v":19},"Reference","Désignation","Unité","Prix Unit. ($)",{"$f":" COUNTA(O8:O30257)","v":0},"Reference","Désignation","Unité","Prix Unit. ($)",{"$f":" COUNTA(T8:T30257)","v":0},"Reference","Désignation","Unité","Prix Unit. ($)",{"$f":" COUNTA(Y8:Y30257)","v":0}]
[null,"PROFIT/ADMIN",null,null,null,null,null,null,null,"TRAVAUX DE BRANCHEMENT ET D'ÉLECTRICITÉ"]
[null,"NOTES ; ",null,null,null,null,null,null,null,"TRAVAUX D'ÉLECTRICITÉ"]
[null,"FRAIS DE TRANSPORT",null,null,null,null,null,null,null,"Installation du matériel fourni par M.U.C tel que devis de procédures"]
[null,"_____________________________________________________",null,null,null,null,null,null,null,"▼Travaux à effectuer au sous-sol▼"]
[null,"CHARPENTE , MENUISERIE ",null,null,null,null,null,null,null,"fournir et installer ;"]
[null,"¯¯¯¯¯¯¯¯¯¯¯¯¯¯¯¯¯¯¯¯¯¯¯¯¯¯¯¯¯¯¯¯¯¯¯¯¯¯¯¯¯¯¯¯¯¯¯¯¯¯¯¯¯",null,null,null,null,null,null,null,"raccordement et installation entrée électrique 200 ampères standard","uN",1200]
[null,"►  RDC ◄",null,null,null,null,null,null,null,"filage du sous-sol 120 volt ( 3 sorties pour porcelaine et 4 prises utilitaire inclus ) "]
[null,"► SOUS-SOL ◄",null,null,null,null,null,null,null,"filage de chauffage (5000w inclus sur 2 thermostats)"]
[null,"TRAVAUX DE MENUISERIE",null,null,null,null,null,null,null,"filage de réservoir eau chaude standard"]
[null,"TRAVAUX DE MENUISERIE DE FINITION",null,null,null,null,null,null,null,"filage de téléphone ( max 100 pied )"]
[null,"TRAVAUX DE COFFRAGE DE BALCONS ",null,null,null,null,null,null,null,"filage pour cable ( max 100 pied )"]
[null,"épinette 2x4x8","uN",2.61,null,null,null,null,null,"2 tiges de mise à la terre"]
[null,"épinette 2x4x12","uN",4.2,null,null,null,null,null,"circuit pompe puisart ( au besoin)"]
[null,"épinette 2x4x16","uN",6.35,null,null,null,null,null,"* si le raccordement au réseau dépasse plus de 100 pied le raccord d'alimentation sera au frais du client *"]
[null,"divisions en 2 x 4 au 16 '' c / c pour cloisons standard",null,null,null,null,null,null,null,"EXTRA au sous-sol"]
[null,"2x8 , 2x10 et plywood pour boites si nécessaire","uN",null,null,null,null,null,null,"filage laveuse-sécheuse ( 180$ )"]
[null,"Ériger les divisions de périmètre de la fondation ***",null,null,null,null,null,null,null,"prise bell / cable std ( 40$ / prise )"]
[null,"ériger division sous-sol tel que plan fourni ▼","uN",null,null,null,null,null,null,"Dérivation unique ( 75$ )"]
[null,"Ériger les divisions intérieures tel que plan fourni par le client","uN",null,null,null,null,null,null,"NOTES;"]
[null,"Division Intérieure",null,null,null,null,null,null,null,"Cette soumission prend en considération que l'alimentation d'hydro se trouve à MOINS DE 100 PIEDS du futur mat sur la maison en autre cas des frais supplémentaires ainsi que des délais beaucoup plus lents seront à considérer."]
[null,"Division Intérieure (2x3 / 16\")","pL",null,null,null,null,null,null,"nous supposons que le matériel fourni par M.U.C est suffisant pour exécuter les travaux demandés. Si toutefois il manque de matériel, celui-ci sera facturé en conséquence ( temps + matériel )"]
[null,"Division Intérieure (2x4 / 16\")","pL",null,null,null,null,null,null,"Nous nous tenons responsable seulement des travaux exécutés par nos sous-traitant et non ceux exécutés par M.U.C ou par d'autre"]
[null,"Division Intérieure (2x6 / 16\")","pL",null,null,null,null,null,null,"Pour tous travaux hors contrat des frais de 85$ / heure par électricien seront chargés"]
[null,"Division Intérieure (2x3 / 24\")","pL",null,null,null,null,null,null,"Pour un branchement aérien 200 ampère standard , Hydro-Québec se donne un délai de 10 jours ouvrable maximum pour effectuer le raccord"]
[null,"Division Intérieure (2x4 / 24\")","pL"]
[null,"Division Intérieure (2x6 / 24\")","pL"]
[null,"Facrication de faux plancher","pL"]
[null,"Fabrication d'une terrasse en bois-traité","p²"]
[null,"Installation de fenêtre","uN"]
[null,"Installation de porte coupe-feu/porte extérieure","uN"]
[null,"Installation de porte patio","uN"]
[null,"Main d'œuvre et matériel inclus"]
[null,"***un espacement de +- 1 '' sera laissé entre la fondation et les divisons afin d'être au niveau partout au périmetre ainsi que pour permettre au polyuréthane de couper le pont thermique avec le bois"]
[null,"_________________________________________________________________"]
[null,"PLOMBERIE"]
[null,"¯¯¯¯¯¯¯¯¯¯¯¯¯¯¯¯¯¯¯¯¯¯¯¯¯¯¯¯¯¯¯¯¯¯¯¯¯¯¯¯¯¯¯¯¯¯¯¯¯¯¯¯¯¯"]
[null," PLOMBERIE POUR MAISON PRÉ-USINÉE","uN",2800]
[null," PLOMBERIE POUR MAISON PRÉ-USINÉE 2 ÉTAGES","uN",2800]
[null,"Travaux de plomberie brute sous-terre et de drainage"]
[null,"↓ Raccordement des appareils suivants déjà au niveau du plancher du RDC ( fait par M.U.C  en usine )  ↓"]
[null,"►  RDC ◄"]
[null,"► SOUS-SOL ◄"]
[null,"► SOUS-SOL ( LOGEMENT ) ◄"]
[null,"► REZ-DE-JARDIN ◄"]
[null,"► ÉTAGE ◄"]
[null,"► GARAGE ◄"]
[null,"→ SECTION CUISINE ←"]
[null,"→ SECTION SALLE DE BAIN PRINCIPALE ←"]
[null,"→ SECTION SALLE DE BAIN SECONDAIRE ←"]
[null,"→ SECTION SALLE DE BAIN ←"]
[null,"→ SECTION SALLE DE BAIN SOUS SOL ←"]
[null,"→ SECTION FUTURE SALLE DE BAIN SOUS SOL ←"]
[null,"→ SECTION SALLE MÉCANIQUE ←"]
[null,"→ SECTION SALLE D'EAU ←"]
[null,"→ SECTION SALLE DE LAVAGE ←"]
[null,"→ SECTION GARAGE ←"]
[null,"→ SECTION EXTÉRIEUR ←"]
[null,"évier de cuisine double"]
[null,"évier de cuisine simple"]
[null,"toilette"]
[null,"lavabo double sur vanité"]
[null,"lavabo sur vanité"]
[null,"bain-douche"]
[null,"douche "]
[null,"bain sur podium"]
[null,"bain auto-portant"]
[null,"bain"]
[null,"laveuse "]
[null,"installation de la quincaillerie de finition"]
[null,"installation de la quincaillerie de finition si non déjà fait par M.U.C"]
[null,"fournir et installer pit 18x24 scellé avec pompe submersible pour drain français et échangeur d'air ","uN",125]
[null,"fournir et installer pit 18x24 avec couvert pour garage ( connexion dans garage seulement ; un tuyau sanitaire devra déjà être à l'intérieur de la fondation du garage  )","uN",200]
[null,"fournir et installer pit 18x24 avec couvert pour garage","uN",350]
[null,"couvert de pit pour puisart scellé et ventilé tel code batiment ","uN",125]
[null,"drain de plancher 3 '' ","uN",125]
[null,"drain sanitaire supplémentaire ","uN",125]
[null,"fournir et installer kit de pompe sanitaire liberty 2'' ( l'évent de 2'' pour la pompe sanitaire sera fait par M.U.C jusqu'au niveau de la ceinture","uN",700]
[null,"↓rough et installation des appareils suivants fourni par le client↓","uN"]
[null,"↓rough et installation des appareils suivants fourni par le plombier↓"]
[null,"rough sanitaire "]
[null,"rough sanitaire pour salle de bain sous-sol ( toilette, lavabo, douche)","uN",500]
[null,"eau chaude/froide pour toilette / lavabo / douche ","uN",125]
[null,"sortie eau froide","uN",125]
[null,"rough complet pour laveuse avec robinet bte blanc ( inclus )"]
[null,"eau chaude / froide pour appareils ","uN",375]
[null,"installer appareils sous-sol ( toilette, douche, lavabo )"]
[null,"toilette complète au sous-sol → rough sanitaire ainsi que eau chaude/froide et installation des appareils ; toilette lavabo douche ","uN",1000]
[null,"Fournir et installer  réservoir à eau chaude 40 Gallons ","uN",0]
[null,"Fournir et installer  réservoir à eau chaude 60 Gallons ","uN",100]
[null,"Fournir et installer  réservoir à eau chaude 40 Gallons","uN",350]
[null,"Fournir et installer  réservoir à eau chaude 60 Gallons ","uN",450]
[null,"sortie eau froide extérieur ½ antigel pex ( voir l'emplacement avec le client )","uN",0,"100$ / supplémentaire"]
[null,"la tuyauterie de drainage d'eau domestique sera raccordé sur l'existant ( réservoir septique et puit artésien )"]
[null,"la tuyauterie de drainage d'eau domestique sera raccordé sur l'existant ( réservoir septique et puit artésien )"]
[null,"notes ; "]
[null," installation de porte de douche non-incluse"]
[null,"le raccordement de plomberie sur la fosse septique se fera à partir de l'intérieur de la fondation qui doit être déjà percée et prêt au raccord ( généralement fait par l'entrepreneur éxecutant les travaux septiques ) "]
[null,"_________________________________________________________________"]
[null,"_________________________________________________________________"]
[null,"VENTILATION"]
[null,"¯¯¯¯¯¯¯¯¯¯¯¯¯¯¯¯¯¯¯¯¯¯¯¯¯¯¯¯¯¯¯¯¯¯¯¯¯¯¯¯¯¯¯¯¯¯¯¯¯¯¯¯¯¯"]
[null,"TRAVAUX DE VENTILATION AU RDC "]
[null,"fournir et installer échangeur d'air pour rdc"]
[null,"pousse d'air dans chambre "]
[null,"pousse dans air ouverte"]
[null,"tire avec bouton poussoir dans salle de bain"]
[null,"sortie de hotte de cuisine standard"]
[null,"sortie de sécheuse"]
[null,"balancement et mise en marche"]
[]
[null,"_________________________________________________________________"]
[null,"ÉLECTRICITÉ"]
[null,"¯¯¯¯¯¯¯¯¯¯¯¯¯¯¯¯¯¯¯¯¯¯¯¯¯¯¯¯¯¯¯¯¯¯¯¯¯¯¯¯¯¯¯¯¯¯¯¯¯¯¯¯¯¯"]
[null,"TRAVAUX DE BRANCHEMENT ET D'ÉLECTRICITÉ"]
[null,"TRAVAUX D'ÉLECTRICITÉ"]
[null,"Installation du matériel fourni par M.U.C tel que devis de procédures"]
[null,"▼Travaux à effectuer au sous-sol▼"]
[null,"fournir et installer ;"]
[null,"raccordement et installation entrée électrique 200 ampères standard","uN",1200]
[null,"filage du sous-sol 120 volt ( 3 sorties pour porcelaine et 4 prises utilitaire inclus ) "]
[null,"filage de chauffage (5000w inclus sur 2 thermostats)"]
[null,"filage de réservoir eau chaude standard"]
[null,"filage de téléphone ( max 100 pied )"]
[null,"filage pour cable ( max 100 pied )"]
[null,"2 tiges de mise à la terre"]
[null,"circuit pompe puisart ( au besoin)"]
[null,"* si le raccordement au réseau dépasse plus de 100 pied le raccord d'alimentation sera au frais du client *"]
[null,"EXTRA au sous-sol"]
[null,"filage laveuse-sécheuse ( 180$ )"]
[null,"prise bell / cable std ( 40$ / prise )"]
[null,"Dérivation unique ( 75$ )"]
[null,"NOTES;"]
[null,"Cette soumission prend en considération que l'alimentation d'hydro se trouve à MOINS DE 100 PIEDS du futur mat sur la maison en autre cas des frais supplémentaires ainsi que des délais beaucoup plus lents seront à considérer."]
[null,"nous supposons que le matériel fourni par M.U.C est suffisant pour exécuter les travaux demandés. Si toutefois il manque de matériel, celui-ci sera facturé en conséquence ( temps + matériel )"]
[null,"Nous nous tenons responsable seulement des travaux exécutés par nos sous-traitant et non ceux exécutés par M.U.C ou par d'autre"]
[null,"Pour tous travaux hors contrat des frais de 85$ / heure par électricien seront chargés"]
[null,"Pour un branchement aérien 200 ampère standard , Hydro-Québec se donne un délai de 10 jours ouvrable maximum pour effectuer le raccord"]
[]
[]
[]
[null,"_________________________________________________________________"]
[null,"SYSTÈMES INTÉRIEURS"]
[null,"¯¯¯¯¯¯¯¯¯¯¯¯¯¯¯¯¯¯¯¯¯¯¯¯¯¯¯¯¯¯¯¯¯¯¯¯¯¯¯¯¯¯¯¯¯¯¯¯¯¯¯¯¯¯"]
[null,"TRAVAUX DE POSE DE SYSTÈMES INTÉRIEURS ▼ *"]
[null,"Installation de gypse complet pour sous-sol standard","p²",0.24]
[null,"Installation de gypse complet pour logement sous-sol","p²",0.26]
[null,"Installation de gypse complet au RDC"]
[null,"double rang 5/8 au plafond"]
[null,"Installation de gypse complet sur étage"]
[null,"Installation de panneau de gypse 4'x8'"]
[null,"Installation de panneau de gypse 4'x10'"]
[null,"Installation de panneau de gypse 4'x12'"]
[null,"Main d'œuvre et matériel inclus"]
[null,"feuille de gypse 1/2 (4' x  8 à 12 ' long )","uN",9]
[null,"feuille de gypse 1/2 (4' x  8 à 12 ' long )","p²",0.27]
[null,"feuille de gypse 5/8 (4' x 8 à 12 ' long )","uN",10.5]
[null,"feuille de gypse 5/8 (4' x 8 à 12 ' long )","p²",0.32]
[null,"vis","uN"]
[null,"livraison","uN"]
[null,"feuille denshield 4'x8' x 1/2 pour douche","uN",40]
[null,"feuille denshield 4'x8' x 5/8 pour douche","uN",60]
[null,"Notes ;"]
[null," *IMPORTANT * prévoir un accès → porte ou fenêtre pour la livraison de gypse ( au moin 48'' d'ouverture pour une fenêtre sinon le fournisseur charge un frais supplémentaire de 3.50$ / feuilles de gypse lors de la livraison )"]
[null,"_________________________________________________________________"]
[null,"ISOLATION"]
[null,"¯¯¯¯¯¯¯¯¯¯¯¯¯¯¯¯¯¯¯¯¯¯¯¯¯¯¯¯¯¯¯¯¯¯¯¯¯¯¯¯¯¯¯¯¯¯¯¯¯¯¯¯¯¯"]
[null,"TRAVAUX D'ISOLATION ET D'INSONORISATION"]
[null,"TRAVAUX D'ISOLATION "]
[null,"TRAVAUX D'ISOLATION POLYURÉTHANE GICLÉE"]
[null,"TRAVAUX DE MENUISERIE ET D'ISOLATION AU POLYURÉTHANE"]
[null,"ériger divisions au périmètre de la fondation ( un espacement de +- 1'' sera laissé afin d'être au niveau partout et couper le pont thermique )"]
[null,"division en bois d'épinette  2 x 4 au 24 '' c / c ","uN"]
[null,"ériger des divisons en bois  2x4 au périmètre du sous-sol ","pL",5.6]
[null,"livraison ,matériel et main-d'œuvre inclus"]
[null,"Souffler Cellulose dans l'entretoît"]
[null,"Cellulose injectée 10'' dans le plafond du rdc","p²",0.75]
[null,"Injection Cellulose (plancher)"]
[null,"Installation de nattes isolantes"]
[null,"Installation de SONOPAN"]
[null,"Installation de pare-vapeur au plafond"]
[null,"Installation de pare-vapeur sur mur"]
[null,"Polyuréthane giclée 3 ½'' solive de rive du sous-sol ( R-24 )","p²",3.25]
[null,"Polyuréthane giclée 1 ½'' sous dalle","p²",1.85]
[null,"Polyuréthane giclée 2 ½'' sur les murs de fondations ( R-17 )","p²",2.25]
[null,"Polyuréthane giclée 1'' "]
[null,"Polyuréthane giclée 1 ½'' "]
[null,"Polyuréthane giclée 2''"]
[null,"Polyuréthane giclée 2 ½''"]
[null,"Polyuréthane giclée 3''"]
[null,"Polyuréthane giclée 3 ½''"]
[null,"OPTION polyuréthane giclée sous-dalle  1 ½''  ► "]
[null,"les mesures peuvent êtres revérifiées sur place lors des travaux et ajustées sur le montant"]
[null,"la surface à isoler doit être sèche, propre et dégagée de tous débris"]
[null,"le polyuréthane doit être recouvert selon les normes"]
[null,"aucun travail ne sera fait autre que spécifié dans le contrat sans frais additionnel"]
[null,"la cellulose peut se déplacer avec le vent si les soffites ne sont pas installés"]
[null,"un espacement de +- 1 '' sera laissé entre la fondation et les divisons afin d'être au niveau partout au périmetre ainsi que pour permettre au polyuréthane de couper le pont thermique avec le bois"]
[null,"_________________________________________________________________"]
[null,"TIRAGE DE JOINTS"]
[null,"¯¯¯¯¯¯¯¯¯¯¯¯¯¯¯¯¯¯¯¯¯¯¯¯¯¯¯¯¯¯¯¯¯¯¯¯¯¯¯¯¯¯¯¯¯¯¯¯¯¯¯¯¯¯"]
[null,"TRAVAUX DE TIRAGE DE JOINTS"]
[null,"Tirer joints pour RDC complet","p²",0.48]
[null,"Tirer joints  pour RDC complet avec cathédrale","p²",0.48]
[null,"Tirer joints pour maison complète RDC et Étage","p²"]
[null,"Tirer joints pour garage ","p²",0.48]
[null,"plafond avec petit cathédrale","uN",325]
[null,"plafond avec  cathédrale","uN",400]
[null,"plafond avec gros cathédrale","uN",400]
[null,"plafond 9' au RDC"]
[null,"plafond 8' 6'' RDC"]
[null,"Tirer joints  pour Sous-Sol complet"]
[null,"Réparation de plâtre"]
[null,"Main d'œuvre et matériel inclus"]
[null,"Location d'échafaudages ( inclus )"]
[null,"échafaudages inclus"]
[null,"notes ; "]
[null,"les tablettes de garde-robe sont déjà installées lors de la réception de la maison, il est conseillé de les enlever avant le début des travaux de joints afin d'avoir une plus belle finition. En cas contraire, l'ouvrier tirera le plus près possible des tablettes."]
[null,"________________________________________________________________"]
[null,"PEINTURE"]
[null,"¯¯¯¯¯¯¯¯¯¯¯¯¯¯¯¯¯¯¯¯¯¯¯¯¯¯¯¯¯¯¯¯¯¯¯¯¯¯¯¯¯¯¯¯¯¯¯¯¯¯¯¯¯¯","uN"]
[null,"TRAVAUX DE PEINTURE ▼ "]
[]
[null,"Peindre RDC complet fini blanc contracteur","p²",0.44]
[null,"Peindre RDC complet couleur (apprêt auto-scellant sur plafonds, murs et boiseries)","p²",0.75]
[null,"Peindre sous-sol complet fini blanc contracteur","p²",0.44]
[null,"Peindre sous-sol complet couleur  (apprêt auto-scellant sur plafonds, murs et boiseries)","p²",0.75]
[null,"Peindre garage blanc contracteur","p²",0.44]
[null,"Plafonds ; 2 couches →1 apprêt auto-scellant et 1 finition blanc mat"]
[null,"Murs et Plafonds 2 couches → apprêt auto-scellant blanc satin"]
[null,"Murs ; 3 couches→ 1 apprêt auto-scellant et 2 couches couleurs fini velours"]
[null,"Boiseries ; 2 couches→ 1 apprêt auto-scellant et 1 finition blanc perle"]
[null,"plafond cathédrale","uN",195]
[null,"matériel , main-d'œuvre et peinture  incluse"]
[null,"Location d'échafaudages ( inclus )"]
[null,"échafaudages inclus"]
[null,"NOTES ;"]
[null,"les couleurs seront au choix du client et les codes devront être fourni préalablement au travaux",null,","]
[null,"les ouvriers utilisent un fusil à peinture pour certaines étapes ce qui donnent de plus beaux résultats finaux"]
[null,"Extra de 125$ / pièce avec mur accent","uN",125]
[null,"_________________________________________________________________"]
[null,"FINITION"]
[null,"¯¯¯¯¯¯¯¯¯¯¯¯¯¯¯¯¯¯¯¯¯¯¯¯¯¯¯¯¯¯¯¯¯¯¯¯¯¯¯¯¯¯¯¯¯¯¯¯¯¯¯¯¯¯"]
[null,"TRAVAUX DE MENUISERIE DE FINITION AU RDC"]
[null,"TRAVAUX DE MENUISERIE DE FINITION AU SOUS-SOL▼"]
[null,"installation de la finition intérieure fournie par M.U.C ","uN",895]
[null,"pose des cadrages autour des fenêtres"]
[null,"pose des plinthes dans toutes les pièces"]
[null,"joints de latex fait suite à la pose de la finiton"]
[null,"main-d'œuvre et latex inclus ( les cadrages et plinthes sont fourni par M.U.C )"]
[null,"▼ MATÉRIAUX FINITIONS STYLE ZEN STD ▼"]
[null,"porte p/m  zen #551 A/C 24x80  4 '' 9/16 main gauche ","uN",90]
[null,"porte p/m  zen #551 A/C 24x80  4 '' 9/16 main droite ","uN",90]
[null,"porte p/m  zen #551 A/C 28x80  4 '' 9/16 main gauche ","uN",90]
[null,"porte p/m  zen #551 A/C 28x80  4 '' 9/16 main droite ","uN",90]
[null,"porte p/m  zen #551 A/C 30x80  4 '' 9/16 main gauche ","uN",90]
[null,"porte p/m  zen #551 A/C 30x80  4 '' 9/16 main droite ","uN",90]
[null,"porte p/m  zen #551 A/C 32x80  4 '' 9/16 main gauche ","uN",90]
[null,"porte p/m  zen #551 A/C 32x80  4 '' 9/16 main droite ","uN",90]
[null,"porte p/m  zen #551 A/C 34x80  4 '' 9/16 main gauche ","uN",90]
[null,"porte p/m  zen #551 A/C 34x80  4 '' 9/16 main droite ","uN",90]
[null,"porte p/m  zen #551 A/C 36x80  4 '' 9/16 main gauche ","uN",90]
[null,"porte p/m  zen #551 A/C 36x80  4 '' 9/16 main droite ","uN",90]
[null," cadrage zen mdf pré-coupé pour pour porte p/m ","uN",20]
[null,"porte pliante riverside #550 24 '' x 79 '' ","uN",57]
[null,"porte pliante riverside #550 30 '' x 79 '' ","uN",62]
[null,"porte pliante riverside #550 36 '' x 79 '' ","uN",67]
[null,"porte pliante conmore #551 24 '' x 79 '' ","uN",62]
[null,"porte pliante conmore #551 30 '' x 79 '' ","uN",80]
[null,"porte pliante conmore #551 36 '' x 79 '' ","uN",72]
[null,"ensemble bati pliante PJ","uN",22]
[null,"poignee & plaque pour porte pliante C15","uN",6]
[null,"cadrage zen mdf pré-coupé pour pour porte pliante","uN",25]
[null,"cadrage zen mdf  5/8 ''x 2 1/2''  #MA13-14","uN",10]
[null,"plinthe zen mdf 1/2 '' x 4 1/2''  #MA1512-14","uN",12]
[null,"quart de rond zen  7/16'' x 11/16'' x 16 ' CAPJ","uN",7]
[null,"1 x 6 pin sel. Jointé B4F KD pour soufflage ","pL",2.25]
[null,"levier passage preston nickel satiné C15","uN",15]
[null,"levier privé preston nickel satiné C15","uN",16]
[null,"butoir flexible nickel satiné C15","uN",1]
[null,"pognée et plaque pliante C15","uN",6]
[null,"installation de cadrage"]
[null,"Installation de porte pré-montée"]
[null,"Installation de plinthe et quart-de-rond"]
[null,"Installation de lambris"]
[null,"Installation d'ogee"]
[null,"Installation de cimaise"]
[null,"Installation de cuisine"]
[null,"Installation de poignée"]
[null,"Divers travail de finition"]
[null,"les matériaux de finition ( type standard ) sont inclus"]
[null,"finiton standard style colonial"]
[null,"finition standard style zen"]
[null,"NOTEZ BIEN ; prix estimatif et sujet à changement → la liste de matériaux à été calculée sur plan et sera re-vérifiée sur place avant les travaux "]
[null,"NOTEZ BIEN ; soumission budgétaire selon le plan fourni , toutes mesures et quantitées devront être vérifiées au chantier , le prix pourra être ajusté en conséquence s'il y a lieu"]
[]
[null,"_________________________________________________________________"]
[null,"REVÊTEMENTS DE SOLS"]
[null,"¯¯¯¯¯¯¯¯¯¯¯¯¯¯¯¯¯¯¯¯¯¯¯¯¯¯¯¯¯¯¯¯¯¯¯¯¯¯¯¯¯¯¯¯¯¯¯¯¯¯¯¯¯¯"]
[null,"TRAVAUX DE POSE DE REVÊTEMENT DE PLANCHER "]
[null,"Installation de plancher  bois franc ( fourni par client )","p²",2,null,"cost ; 1,50$"]
[null,"Installation de plancher flottant ( fourni par client )","p²",1.5,null,"cost ; 1,00$"]
[null,"Installation de plancher de vinyle  type clic ( non-collé )"]
[null,"installation du papier , membrane sous-plancher ( fourni par client )"]
[null,"pose des moulures incluses si sur place lors des travaux ( fourni par client )"]
[]
[null,"une perte de 5% a été calculée "]
[null,"extra applicable si plancher 2¼ large"]
[null,"† il est de la responsabilité du client d'avoir tout le matériel nécessaire afin d'effectuer les travaux , si du matériel est manquant et exige une visite supplémentaire de l'ouvrier celle-ci sera facturée au taux horaire ccq en vigueur"]
[null,"†† Le nombre de pied carré a été calcuclé selon le plan fourni , s'il y a une différence entre la quantité installé et l'estimation sur plan , il y aura ajustement avec la quantité réellement installée"]
[null,"_________________________________________________________________"]
[null,"TRAVAUX  DE CARRELAGE "]
[null,"¯¯¯¯¯¯¯¯¯¯¯¯¯¯¯¯¯¯¯¯¯¯¯¯¯¯¯¯¯¯¯¯¯¯¯¯¯¯¯¯¯¯¯¯¯¯¯¯¯¯¯¯¯¯"]
[null,"TRAVAUX DE CÉRAMIQUE"]
[]
[null,"installation de carreaux de céramique/porcelaine au plancher  ","p²",4.5,null,"cost ; 3,25$"]
[null,"quantitées selon plan fourni et répartition de plancher"]
[null,"Main d'œuvre et ciment-colle pour pose carreaux céramique  au plancher inclus"]
[null,"installation de carreaux de céramique/porcelaine au mur","p²",5.75,null,"cost ; 3,25$"]
[null,"installation de carreaux céramique au mur pour douche 36x48 avec  membrane liquide imperméabilisante","uN",675,null,"cost ; "]
[null,"installation de carreaux céramique au mur pour douche 36x36 avec membrane liquide imperméabilisante","uN",850,null,"cost ; "]
[null,"installation de carreaux céramique au mur pour douche 36x60 avec membrane liquide imperméabilisante","uN",775,null,"cost ; "]
[null,"main d'œuvre pour membrane liquide incluse","uN",null,null,"cost ; 50$"]
[null,"extra pour coulis à l'époxy ( main d'œuvre seulement ) "]
[null,"installation de carreaux de céramique au mur pour dosseret cuisine ","uN",425,null,"cost ; 300$ si 40 p.c et -"]
[null,"installation de tuiles de céramique pour sur podium salle de bain","uN",195]
[null,"insertion de mosaïque (plancher)","uN",85]
[null,"insertion de mosaïque (douche) ","uN",85,null,"cost ; 45$"]
[null,"installation de tuile en granite"]
[null,"installation de tuile d'ardoise"]
[null,"insertion plancher ou douche ; 85$ / unité"]
[null,"prix si moulures céramique manquantes ; 15 $ / unité"]
[null,"prix pour dado cuisine ( si en bas de 40 p.c ) ; 425 $ montant fixe"]
[]
[null,"non inclus ( doit être sur place lors des travaux ) ; tuiles,  moulures d'aluminium , colle prise rapide pour pose verticale sur murs si à faire , coulis , membrane d'étanchéité liquide"]
[null,"prix pour format standard ; 12x12 / 13x13 / 12x24 / 18x18 "]
[null,"une perte de 10% a été calculée "]
[null,"† il est de la responsabilité du client d'avoir tout le matériel nécessaire afin d'effectuer les travaux , si du matériel est manquant et exige une visite supplémentaire de l'ouvrier celle-ci sera facturée au taux horaire ccq en vigueur"]
[null,"†† Le nombre de pied carré a été calcuclé selon le plan fourni , s'il y a une différence entre la quantité installé et l'estimation sur plan , il y aura ajustement avec la quantité réellement installée"]
[]
[null,"_________________________________________________________________"]
[null,"TRAVAUX DE MENUISERIE ET D'INSTALLATION D'ESCALIERS"]
[null,"¯¯¯¯¯¯¯¯¯¯¯¯¯¯¯¯¯¯¯¯¯¯¯¯¯¯¯¯¯¯¯¯¯¯¯¯¯¯¯¯¯¯¯¯¯¯¯¯¯¯¯¯¯¯"]
[null,"TRAVAUX DE MENUISERIE ► INSTALLATION D'ESCALIER ET DE RAMPE"]
[null,"installation d'escalier et rampe tel que plan ( voir devis descriptifs des matériaux joint avec cette soumission )"]
[null,"la finition sera teint la même couleur que l'échantillion fourni par le client "]
[null,"poteaux en chêne "]
[null,"barreau en fer forgé noir texturé"]
[null,"main courante en chêne "]
[null,"la livraison , le matériiel ainsi que l'installation sont inclus dans cette soumission"]
[null,"NOTE ;"]
[null,"soumisson budgétaire selon les plans fournis , toutes mesures et quantités devront être vérifiées au chantier , le prix pourra être ajusté en conséquence s'il y a lieu"]
[]
[null,"MAIN-D'ŒUVRE"]
[null,"_________________________________________________________________"]
[null,"Main-d'œuvre additionnelle"]
[null,"_________________________________________________________________"]
[null,"REVÊTEMENT EXTÉRIEUR"]
[null,"¯¯¯¯¯¯¯¯¯¯¯¯¯¯¯¯¯¯¯¯¯¯¯¯¯¯¯¯¯¯¯¯¯¯¯¯¯¯¯¯¯¯¯¯¯¯¯¯¯¯¯¯¯¯"]
[null,"Fournir et installer gouttières"]
[null,"."]
[null,"."]
[null,"."]
[null,"."]
[null,"."]
[null,"."]
[null,"."]
[null,"."]
[null,"."]
[null,"."]

{"sheet":"BL","index":2,"n_rows":61,"n_cols":7,"rows_kept":61,"cut":false,"hidden":true,"merged":[[60,0,60,1],[58,0,58,1],[59,0,59,1],[59,2,59,4],[54,0,54,1],[54,2,54,3],[55,0,55,1],[56,0,56,1],[57,0,57,1],[57,2,57,4],[55,2,55,4],[53,0,53,1],[6,5,6,6],[8,3,8,4],[8,5,8,6],[9,3,9,4],[9,5,9,6],[46,0,46,1],[48,0,48,1],[49,0,49,1],[50,2,50,4],[52,0,52,1],[52,2,52,3],[3,0,3,2],[3,3,3,6],[4,0,4,2],[4,3,4,6],[5,0,5,2],[5,3,5,6],[0,0,0,2],[0,3,0,5],[1,0,1,2],[1,3,1,4],[2,0,2,2],[2,3,2,6]]}
["Gestion & Développement Bergeron Gagné Inc.                    ",null,null,"Bon Livraison",null,null,1.0009999999999999]
["Affaire suivi par :  Hippocrate",null,null,"Terrebonne",null,"2016-09-21"]
["Descriptif : Que j'aime à faire connaître ce nombre utile aux sages Glorieux Archimède, "]
["artiste ingénieux, Toi de qui Syracuse aime encore la gloire, Soit ton nom conservé par ",null,null,"Lamarche Coté  Marjolaine et Philippe"]
["de savants grimoires !Jadis, mystérieux, un problème bloquait. Que Pythagore découvrit ",null,null,"141 rue mi-ro-chan "]
["aux anciens Grecs. O quadrature ! vieux tourment du philosophe ! Insoluble rondeur, trop ",null,null,"St-lin-laurentides"]
[{"$f":"COUNTA(B13:B45)","v":0},null,null,"Semaine","Fichier:",{"$f":"LOWER(IF(B8=\"\",\"\",CONCATENATE(B8,G8)))","v":"lamarche coté1"}]
["Artisan","Lamarche Coté",null,38,"Page :",null,1]
[null,null,null,"Début Travaux :"]
["N° Cd",null,null,"Fin Travaux :"]
[]
["Référence","Designation","Unité","Remise","Quantité","Prix Unit. ($)","Prix ($)"]
[null,null,null,null,null,null,{"$f":"IF(COUNTA(E13:F13)<2,\"\",PRODUCT(((100-D13)/100),E13,F13))","v":""}]
[null,null,null,null,null,null,{"$f":"IF(COUNTA(E14:F14)<2,\"\",PRODUCT(((100-D14)/100),E14,F14))","v":""}]
[null,null,null,null,null,null,""]
[null,null,null,null,null,null,""]
[null,null,null,null,null,null,""]
[null,null,null,null,null,null,""]
[null,null,null,null,null,null,""]
[null,null,null,null,null,null,""]
[null,null,null,null,null,null,""]
[null,null,null,null,null,null,""]
[null,null,null,null,null,null,""]
[null,null,null,null,null,null,""]
[null,null,null,null,null,null,""]
[null,null,null,null,null,null,""]
[null,null,null,null,null,null,""]
[null,null,null,null,null,null,""]
[null,null,null,null,null,null,""]
[null,null,null,null,null,null,""]
[null,null,null,null,null,null,""]
[null,null,null,null,null,null,""]
[null,null,null,null,null,null,""]
[null,null,null,null,null,null,""]
[null,null,null,null,null,null,""]
[null,null,null,null,null,null,""]
[null,null,null,null,null,null,""]
[null,null,null,null,null,null,""]
[null,null,null,null,null,null,""]
[null,null,null,null,null,null,""]
[null,null,null,null,null,null,""]
[null,null,null,null,null,null,""]
[null,null,null,null,null,null,""]
[null,null,null,null,null,null,""]
[null,null,null,null,null,null,""]
[]
["Signature  Client",null,"Total(Feuille)",null,null,null,{"$f":"SUM(G13:G45)","v":0}]
[]
[null,null,"Report"]
[]
[null,null,"Total H.T. (Feuille + Report)",null,null,null,{"$f":"SUM(G13:G45,G49)","v":0}]
[]
[null,null,"Total Taxes",null,0.14974999999999999,null,{"$f":"PRODUCT(G51,E53)","v":0}]
[]
["Gestion & Développement Bergeron Gagné Inc.                    ",null,"Total  ",null,null,null,{"$f":"SUM(G51,G53)","v":0}]
["Entrepreneur Général"]
["2027 Murray Bay, Mascouche, Québec, Canada, J7L 4G8"]
["TÉL: 514.299.8440",null,"Acompte Versé"]
["Courriel: jsbg@live.ca"]
["R.B.Q. : 5627-0927-01",null,"Montant à payer",null,null,null,{"$f":"SUM(G55-G58)","v":0}]
["T.V.Q.: 121760185 / T.P.S.: 82665 6803"]